Cogmind - Beta 13 @@@ ROGUE MODE // 2024.03.26 @ 19:24:29 Player: f_ Result: Destroyed by B-75 Beast with Heavy Plasma Cannon Performance ------------- Evolutions (2) 1000 Regions Visited (7) 1400 Robots Destroyed (100) 500 Value Destroyed (2467) 2467 Prototype IDs (10) 200 Alien Tech Used (0) 0 Bonus (495) 495 TOTAL SCORE: 6062 Bonus ------- High Alert Combat Kills 295 Entered Garrisons 200 Cogmind --------- Core Integrity 0/550 Matter 152/300 Energy 100/100 System Corruption 10% Temperature Cool (12) Movement Core (700) Ox13 Location -8/Garrison Parts ------- > --- POWER (1) -------- (None) > --- PROPULSION (2) --- (None) > --- UTILITY (6) ------ High-capacity Storage Unit Improved Signal Interpreter Melee Analysis Suite > --- WEAPON (2) ------- Katana > --- INVENTORY (20) --- Light Nuclear Core Light Nuclear Core Aluminum Leg Signal Interpreter Signal Interpreter Particle Charger Core Shielding Hardlight Generator Hardlight Generator Heavy EM Pulse Gun Ion Cannon High-powered Shotgun Improved Light Cannon Maul Peak State ------------ > --- POWER ------------ Nuclear Core > --- PROPULSION ------- Compact Wheel Compact Wheel > --- UTILITY ---------- High-capacity Storage Unit Experimental Sensor Array Improved Signal Interpreter Heavy Armor Plating Hardlight Generator > --- WEAPON ----------- Maul Great Maul > --- INVENTORY -------- Light Nuclear Core Light Nuclear Core Improved Heat Sink Signal Interpreter Signal Interpreter Particle Charger Hardened Light Armor Plating Hardened Medium Armor Plating Hardlight Generator Hardlight Generator Heavy EM Pulse Gun Ion Cannon High-powered Shotgun High-powered Shotgun Improved Light Cannon Rocket Launcher [Rating: 36] Favorites ----------- Power Ion Engine Engine Ion Engine Power Core Light Nuclear Core Propulsion Compact Wheel Leg Improved Aluminum Leg Wheel Compact Wheel Utility High-capacity Storage Unit Device Experimental Sensor Array Storage High-capacity Storage Unit Processor Improved Signal Interpreter Hackware System Shield Protection Hardened Medium Armor Plating Weapon Great Maul Energy Gun EM Pulse Gun Energy Cannon Ion Cannon Ballistic Gun High-powered Shotgun Ballistic Cannon Improved Light Cannon Launcher Shock Bomb Launcher Impact Weapon Great Maul Slashing Weapon Katana Build | -11 -10 -9 -9 -9 -8 -8 -8 ------- Run | Yrd Mat Mat Min Exi Min Mat Gar Slots Evolved 4 | . . 2 . . . 2 . Power . | . . . . . . . . Propulsion . | . . . . . . . . Utility 4 | . . 2 . . . 2 . Weapon . | . . . . . . . . Parts Attached 86 | 5 7 9 2 . 5 29 29 Power 7 | 1 1 . . . . 3 2 Engine 3 | 1 1 . . . . 1 . Core 4 | . . . . . . 2 2 Reactor . | . . . . . . . . Propulsion 12 | 2 1 1 . . 2 3 3 Treads . | . . . . . . . . Leg 3 | . . . . . . . 3 Wheel 9 | 2 1 1 . . 2 3 . Hover . | . . . . . . . . Flight . | . . . . . . . . Utility 33 | 1 2 2 2 . 1 12 13 Device 16 | . 1 1 1 . . 5 8 Storage 2 | 1 1 . . . . . . Processor 3 | . . . 1 . . 1 1 Hackware 1 | . . . . . . 1 . Protection 11 | . . 1 . . 1 5 4 Artifact . | . . . . . . . . Weapon 34 | 1 3 6 . . 2 11 11 Energy Gun 4 | 1 2 . . . . 1 . Energy Cannon 3 | . 1 . . . . 2 . Ballistic Gun 6 | . . 2 . . . 1 3 Ballistic Cannon 4 | . . 3 . . 1 . . Launcher 9 | . . 1 . . 1 3 4 Special Weapon . | . . . . . . . . Impact Weapon 6 | . . . . . . 4 2 Slashing Weapon 2 | . . . . . . . 2 Piercing Weapon . | . . . . . . . . Special Melee Weapon . | . . . . . . . . Unidentified Prototypes 3 | . . 1 1 . . 1 . Corrupted Parts 2 | . . . . . . . 2 System Corruption 10 | . . . . . . . 10 Parts Lost 29 | . 4 . . . 4 7 14 Power 5 | . 1 . . . . 1 3 Propulsion 8 | . 1 . . . 2 2 3 Utility 8 | . . . . . . 3 5 Weapon 8 | . 2 . . . 2 1 3 Highest Loss Streak 5 | . 3 . . . 3 4 5 To Critical Strikes . | . . . . . . . . Average Slot Usage (%) 88 | . 92 92 100 100 94 93 79 Engine 5 | . 13 11 11 11 11 3 . Core 4 | . . . . . . 4 8 Wheel 13 | . 25 22 22 22 20 17 2 Device 9 | . 11 22 11 11 11 10 6 Storage 10 | . 14 11 11 11 11 9 9 Processor 9 | . . . 11 11 11 9 14 Hackware 1 | . . . . . . 6 . Protection 12 | . . 3 11 11 11 15 17 Energy Gun 2 | . 20 . . . . . . Energy Cannon 2 | . 6 . . . . 6 . Ballistic Gun 3 | . . 1 11 11 2 . 4 Ballistic Cannon 1 | . . 15 . . 2 1 . Launcher 4 | . . 3 11 11 12 3 1 Impact Weapon 3 | . . . . . . 3 7 Slashing Weapon 1 | . . . . . . . 4 Naked Turns . | . . . . . . . . Heaviest Build 83 | 12 51 65 63 63 64 79 83 Greatest Support 32 | 32 32 32 32 32 32 32 32 Greatest Overweight (x) 22 | . 3 2 1 1 3 4 22 Average Overweight (x) 2 | . . 1 1 1 1 2 7 Largest Inventory Capacity 20 | 8 20 20 20 20 20 20 20 Average Capacity 19 | 6 15 20 20 20 20 20 20 Most Carried 20 | 3 15 20 20 20 20 20 17 Average Carried 15 | 2 6 16 19 20 19 18 15 Final Capacity 20 | 8 20 20 20 20 20 20 20 Final Carried 20 | 3 15 20 20 20 18 16 14 Class Distribution -------------------- 80% | Mutant 14% | Gladiator 5% | Scavenger-Mutant Dominant Class ---------------- Mutant | -10/Materials Mutant | -9/Materials Mutant | -9/Mines Mutant | -9/Exiles Mutant | -8/Mines Mutant | -8/Materials Mutant | -8/Garrison Resources | -11 -10 -9 -9 -9 -8 -8 -8 ----------- Run | Yrd Mat Mat Min Exi Min Mat Gar Matter Collected 1685 | 197 113 78 . . 290 612 395 Remotely . | . . . . . . . . Salvage Created 2621 | . 464 87 . . 363 1112 595 Parts 152 | . 38 8 . . 28 56 22 Haulers Intercepted 5 | . 2 1 . . . 2 . Recyclers Shooed 3 | . 1 . . . . 2 . Parts Field Recycled . | . . . . . . . . Retrieved Matter . | . . . . . . . . Parts Self-Destructed . | . . . . . . . . Prevented . | . . . . . . . . Kills | -11 -10 -9 -9 -9 -8 -8 -8 ------- Run | Yrd Mat Mat Min Exi Min Mat Gar Combat Hostiles Destroyed 71 | . 10 3 . . 15 24 19 Melee 6 | . . . . . . 5 1 Guns 11 | . 3 . . . . 3 5 Cannons 13 | . 4 3 . . 3 3 . AOE 29 | . 3 . . . 10 11 5 Classes Destroyed 14 | . 5 . . . 3 3 3 Worker 4 | . . . . . . 4 . Builder 5 | . . . . . 1 4 . Tunneler 2 | . 1 . . . . 1 . Hauler 5 | . 2 1 . . . 2 . Recycler 4 | . . . . . . 4 . Watcher 9 | . 3 2 . . . 4 . Swarmer 31 | . 6 3 . . 11 8 3 Grunt 26 | . 4 . . . 2 10 10 Brawler 2 | . . . . . 1 1 . Duelist 2 | . . . . . . . 2 Protector 1 | . . . . . . . 1 Sentry 6 | . . . . . . 4 2 Demolisher 1 | . . . . . . . 1 Hunter 2 | . . . . . 1 1 . Best Kill Streak 8 | . 4 3 . . 6 8 6 Combat Bots Only 6 | . 3 3 . . 5 4 6 Max Kills in Single Turn 3 | . 2 1 . . 2 3 3 Gunslinging . | . . . . . . . . Exploded 3 | . 2 . . . 2 2 3 Melee 1 | . . . . . . 1 1 Uniques/NPCs Destroyed . | . . . . . . . . Combat | -11 -10 -9 -9 -9 -8 -8 -8 -------- Run | Yrd Mat Mat Min Exi Min Mat Gar Hostile Shots Fired 329 | . 41 12 . . 37 120 119 Missed 82 | . 11 4 . . 11 29 27 Damage Taken 3923 | . 343 67 . . 430 1234 1849 Core 684 | . 70 20 . . 27 93 474 Absorbed by Shields 220 | . . . . . . 184 36 Core Remaining (%) 86 | 100 72 . . . 88 . . Volleys Fired 173 | . 40 18 . . 22 66 27 Largest 2 | . 2 2 . . 1 2 2 Hottest 100 | . 100 70 . . 39 99 58 Shots Fired 255 | . 74 34 . . 22 83 42 Gun 95 | . 49 2 . . . 11 33 Cannon 105 | . 25 32 . . 4 44 . Launcher 55 | . . . . . 18 28 9 Special . | . . . . . . . . Kinetic 87 | . . 34 . . 4 16 33 Thermal 64 | . 25 . . . . 39 . Explosive 43 | . . . . . 6 28 9 Electromagnetic 61 | . 49 . . . 12 . . Robot Hit Streak 9 | . 5 4 . . 5 9 7 Robot Miss Streak 5 | . 5 4 . . 4 5 5 Penetration Max . | . . . . . . . . Secondary Targets 1 | . . . . . . . 1 Max Gunslinging Chain 1 | . . . . . . . 1 Shots Hit Robots 157 | . 33 17 . . 11 57 39 Core Hits 136 | . 19 6 . . 18 62 31 Critical Kills . | . . . . . . . . Critical Parts Destroyed 14 | . . . . . . 6 8 Critical Strikes 15 | . . . . . 1 6 8 Destroy 1 | . . . . . . . 1 Blast 1 | . . . . . 1 . . Smash 13 | . . . . . . 6 7 Melee Attacks 61 | . . . . . . 27 34 Impact 60 | . . . . . . 27 33 Slashing 1 | . . . . . . . 1 Piercing . | . . . . . . . . Sneak Attacks 1 | . . . . . . 1 . Combat Hostiles . | . . . . . . . . Follow-up Attacks 2 | . . . . . . 2 . Damage Inflicted 6704 | . 776 292 . . 946 3151 1539 Guns 943 | . 304 32 . . . 182 425 Cannons 1076 | . 208 260 . . 65 543 . Explosions 3406 | . 264 . . . 881 1761 500 Melee 1279 | . . . . . . 665 614 Ramming . | . . . . . . . . Kinetic 1029 | . . 292 . . 65 247 425 Thermal 950 | . 472 . . . . 478 . Explosive 2598 | . . . . . 337 1761 500 Electromagnetic 848 | . 304 . . . 544 . . Impact 1279 | . . . . . . 665 614 Slashing . | . . . . . . . . Piercing . | . . . . . . . . Highest Corruption 10 | . . . . . . . 10 Average Corruption 9 | . . . . . . . 9 Corruption Purged . | . . . . . . . . Corruption Blocked . | . . . . . . . . Effects 14 | . . . . . . . 14 Message Errors 4 | . . . . . . . 4 Matter Fused 3 | . . . . . . . 3 Heat Flow Errors 2 | . . . . . . . 2 Energy Discharges 2 | . . . . . . . 2 Data Loss (minor) 1 | . . . . . . . 1 Misfires 1 | . . . . . . . 1 Weapon Failures 1 | . . . . . . . 1 Overload Shots . | . . . . . . . . Overflow Damage 807 | . 17 . . . 45 414 331 Projectiles 5 | . . . . . . 5 . Explosions 127 | . 17 . . . 45 45 20 Melee 675 | . . . . . . 364 311 Knockbacks 6 | . . . . . . 2 4 Impact 4 | . . . . . . 2 2 Kinetic . | . . . . . . . . Secondary 2 | . . . . . . . 2 Self-Inflicted Damage 653 | . 69 . . . 123 260 201 Shots 25 | . 2 . . . 8 9 6 Rammed . | . . . . . . . . Targets Rammed . | . . . . . . . . Kicked . | . . . . . . . . Crushed . | . . . . . . . . Highest Temperature 314 | . 314 . . . 36 211 217 Average Temperature 67 | . 80 . . . 10 64 49 Received Heat Transfer 1029 | . 54 . . . 54 378 543 Siege Activations . | . . . . . . . . Robots Corrupted 2 | . . . . . 2 . . Combat Hostiles 2 | . . . . . 2 . . Parts Fried 17 | . . . . . 2 10 5 Impact Corruptions 27 | . . . . . . 15 12 Robots Melted . | . . . . . . . . Combat Hostiles . | . . . . . . . . Parts Melted 1 | . 1 . . . . . . Heat Transferred 1321 | . 544 . . . . 777 . Parts Sabotaged . | . . . . . . . . Parts Stolen . | . . . . . . . . Parts Stripped . | . . . . . . . . Power Chain Reactions 3 | . 3 . . . . . . Alert | -11 -10 -9 -9 -9 -8 -8 -8 ------- Run | Yrd Mat Mat Min Exi Min Mat Gar Peak Influence 993 | . 274 223 86 . 284 603 993 Initial 336 | . . 66 86 . . 95 336 Average 377 | . 125 182 86 . 144 274 653 Maximum Alert Level 3 | . 1 1 . . 1 2 3 Low Security (%) 34 | 100 79 25 100 . 52 45 . Level 1 20 | . 20 74 . . 47 26 4 Level 2 26 | . . . . . . 27 49 Level 3 18 | . . . . . . . 45 Level 4 . | . . . . . . . . Level 5 . | . . . . . . . . High Security . | . . . . . . . . Max Security . | . . . . . . . . Squads Dispatched 7 | . 1 1 . . . 5 . Investigation . | . . . . . . . . Extermination . | . . . . . . . . Reinforcement 6 | . 1 1 . . . 4 . Assault 1 | . . . . . . 1 . Garrison . | . . . . . . . . Intercept . | . . . . . . . . Searches Triggered . | . . . . . . . . Construction Impeded 1 | . . . . . . 1 . Haulers Reinforced . | . . . . . . . . Active Scanning Responses . | . . . . . . . . Cargo Convoy Interrupts . | . . . . . . . . Stealth | -11 -10 -9 -9 -9 -8 -8 -8 --------- Run | Yrd Mat Mat Min Exi Min Mat Gar Distress Signals 4 | . . 1 . . . 3 . Communications Jammed . | . . . . . . . . Distress Signals . | . . . . . . . . Times Spotted 96 | . 13 8 . . 18 34 23 Peak Tracking Total 7 | . 3 5 . . 5 7 6 Tactical Retreats 9 | . 1 1 . . 2 4 1 Traps | -11 -10 -9 -9 -9 -8 -8 -8 ------- Run | Yrd Mat Mat Min Exi Min Mat Gar Traps Triggered 4 | . . . . . . 2 2 Indirectly . | . . . . . . . . Trap Hack Attempts . | . . . . . . . . Triggered . | . . . . . . . . Disarmed . | . . . . . . . . Reprogrammed . | . . . . . . . . Reused . | . . . . . . . . Traps Extracted . | . . . . . . . . Installed . | . . . . . . . . Triggered . | . . . . . . . . Machines | -11 -10 -9 -9 -9 -8 -8 -8 ---------- Run | Yrd Mat Mat Min Exi Min Mat Gar Machines Disabled 9 | . 5 . . . 2 2 . Max in Single Turn 1 | . 1 . . . 1 1 . Machines Repaired . | . . . . . . . . Machines Dismantled . | . . . . . . . . Machines Sabotaged . | . . . . . . . . Overloaded Fab Kills . | . . . . . . . . Hacking | -11 -10 -9 -9 -9 -8 -8 -8 --------- Run | Yrd Mat Mat Min Exi Min Mat Gar Machines Accessed 18 | . 5 1 . 1 1 9 1 Terminals 14 | . 4 1 . . 1 7 1 Fabricators . | . . . . . . . . Repair Stations . | . . . . . . . . Recycling Units 2 | . 1 . . . . 1 . Scanalyzers . | . . . . . . . . Garrison Access 1 | . . . . . . 1 . Total Hacks 32 | . 14 2 . 2 1 12 1 Successful 18 | . 3 2 . 2 1 9 1 Failed 14 | . 11 . . . . 3 . Catastrophic . | . . . . . . . . Database Lockouts . | . . . . . . . . Manual . | . . . . . . . . Terminals 26 | . 12 2 . . 1 10 1 Fabricators . | . . . . . . . . Repair Stations . | . . . . . . . . Recycling Units 3 | . 2 . . . . 1 . Scanalyzers . | . . . . . . . . Garrison Access 1 | . . . . . . 1 . Terminal Hacks 15 | . 2 2 . 2 1 7 1 Record 2 | . . . . 2 . . . Robot Analysis 2 | . 1 . . . . 1 . Prototype ID Bank 4 | . 1 . . . . 3 . Open Door 1 | . . . . . . . 1 Emergency Access Points 1 | . . . . . . 1 . Alert Level 3 | . . 1 . . 1 1 . Unreport Threat 1 | . . . . . . 1 . Locate Traps 1 | . . 1 . . . . . Fabricator Hacks . | . . . . . . . . Repair Station Hacks . | . . . . . . . . Recycling Unit Hacks 2 | . 1 . . . . 1 . Report Inventory 2 | . 1 . . . . 1 . Scanalyzer . | . . . . . . . . Garrison Access Hacks 1 | . . . . . . 1 . Unlock Access 1 | . . . . . . 1 . Unauthorized Hacks . | . . . . . . . . Terminals . | . . . . . . . . Fabricators . | . . . . . . . . Repair Stations . | . . . . . . . . Recycling Units . | . . . . . . . . Scanalyzers . | . . . . . . . . Garrison Access . | . . . . . . . . Data Cores Recovered . | . . . . . . . . Used . | . . . . . . . . Hacking Detections 5 | . 4 1 . . . . . Full Trace Events 3 | . 3 . . . . . . Feedback Events . | . . . . . . . . Feedback Blocked . | . . . . . . . . Robot Schematics Acquired . | . . . . . . . . Robots Built . | . . . . . . . . Authchips . | . . . . . . . . Time . | . . . . . . . . Total Robot Build Rating . | . . . . . . . . Part Schematics Acquired . | . . . . . . . . Parts Built . | . . . . . . . . Authchips . | . . . . . . . . Time . | . . . . . . . . Total Part Build Rating . | . . . . . . . . Parts Repaired . | . . . . . . . . Time . | . . . . . . . . Parts Recycled . | . . . . . . . . Recycled Matter . | . . . . . . . . Retrieved Matter . | . . . . . . . . Retrieved Components . | . . . . . . . . Parts Scanalyzed . | . . . . . . . . Part Schematics Acquired . | . . . . . . . . Parts Damaged . | . . . . . . . . Bothacking | -11 -10 -9 -9 -9 -8 -8 -8 ------------ Run | Yrd Mat Mat Min Exi Min Mat Gar Used RIF Installer . | . . . . . . . . Robots Hacked . | . . . . . . . . Non-combat . | . . . . . . . . Combat . | . . . . . . . . Robot Hacks Applied . | . . . . . . . . Relay Couplers Released . | . . . . . . . . Fabnet Peak Effective % . | . . . . . . . . Robots Rewired . | . . . . . . . . Allies Hacked . | . . . . . . . . Hacks Repelled . | . . . . . . . . Allies | -11 -10 -9 -9 -9 -8 -8 -8 -------- Run | Yrd Mat Mat Min Exi Min Mat Gar Total Allies 1 | . . . 1 . . . . Largest Group 1 | . . . 1 . . . . Highest-Rated Group 31 | . . . 31 . . . . Highest-Rated Ally 31 | . . . 31 . . . . Total Orders . | . . . . . . . . Ally Attacks . | . . . . . . . . Total Damage . | . . . . . . . . Kills . | . . . . . . . . Allies Corrupted . | . . . . . . . . Allies Melted . | . . . . . . . . Intel | -11 -10 -9 -9 -9 -8 -8 -8 ------- Run | Yrd Mat Mat Min Exi Min Mat Gar Robot Analysis Total 2 | . 1 . . . . 1 . Derelict Logs Recovered 1 | . . . 1 . . . . Drone Launches . | . . . . . . . . Drone Recoveries . | . . . . . . . . Exploration | -11 -10 -9 -9 -9 -8 -8 -8 ------------- Run | Yrd Mat Mat Min Exi Min Mat Gar Turns Passed 5759 | 48 749 309 284 322 602 1223 2222 Spaces Moved 2802 | 40 519 194 212 280 445 681 431 Core 138 | 9 . . . . . . 129 Treads . | . . . . . . . . Legs 102 | . . . . . . . 102 Wheels 2562 | 31 519 194 212 280 445 681 200 Hover . | . . . . . . . . Flight . | . . . . . . . . Fastest Speed 50 | 50 100 115 115 115 115 115 130 Average Speed 171 | 88 113 117 115 115 117 130 461 Slowest Speed 1150 | 100 145 130 115 115 145 160 1150 Overloaded Moves . | . . . . . . . . Propulsion Burnouts . | . . . . . . . . Robots Hopped . | . . . . . . . . Cave-ins Triggered . | . . . . . . . . Exploration Rate (%) 47 | 4 72 26 38 62 72 61 43 Regions Visited 7 Branch Regions 3 Pre-discovered Areas 1 | . . . . 1 . . . Known Exits Taken 4 | . . . 1 1 1 1 . Unknown Exits Taken 3 | 1 1 1 . . . . . Scrap Searched 1 | . . . . . 1 . . Spaces Dug 9 | . . . . . . 4 5 Terrain Destroyed 314 | . 6 . . . 37 229 42 Melee 9 | . . . . . . 4 5 Projectile 6 | . . . . . . 6 . AOE 299 | . 6 . . . 37 219 37 Terrain Rammed . | . . . . . . . . Walls Destroyed . | . . . . . . . . Machines Disabled . | . . . . . . . . Actions | -11 -10 -9 -9 -9 -8 -8 -8 --------- Run | Yrd Mat Mat Min Exi Min Mat Gar Total 3370 | 52 604 240 251 280 503 890 550 Wait 148 | . 19 4 36 . 29 51 9 Move 2796 | 39 518 193 211 279 444 681 431 Hop . | . . . . . . . . Pick Up 77 | 8 19 10 1 . 2 24 13 Fast Attach 2 | . . 2 . . . . . Attach 47 | 5 6 1 . . 3 18 14 Detach 2 | . . . . . . 2 . Swap 37 | . 1 6 2 . 2 11 15 Drop 26 | . 1 6 1 . 1 14 3 Fire 173 | . 40 18 . . 22 66 27 Melee 56 | . . . . . . 23 33 Ram . | . . . . . . . . Kick . | . . . . . . . . Crush . | . . . . . . . . Escape Stasis 5 | . . . . . . . 5 Rewire 1 | . . . . 1 . . . Trap . | . . . . . . . . Miscellaneous . | . . . . . . . . Route ------- -11/Scrapyard -10/Materials (discovered 2 exits: *Mat x2) -9/Materials -9/Mines -9/Exiles (discovered 2 exits: *Min x2) -8/Mines -8/Materials (discovered 4 exits: *Fac / *Sto x2 / Gar) -8/Garrison History --------- Turn | Location | Event 16 | -11/Scrapyard | Discovered new exit (range 16) 49 | -11/Scrapyard | Entered Materials 330 | -10/Materials | Build established: Mutant 426 | -10/Materials | Lost 3 parts (1p2w) 481 | -10/Materials | Discovered new exit (range 11) 700 | -10/Materials | Derelicts attacked the area 726 | -10/Materials | Discovered new exit (range 14) 798 | -10/Materials | Entered another Materials area 798 | -9/Materials | Evolved 2 slots: Utility x2 1093 | -9/Materials | Discovered new exit (range 10) 1107 | -9/Materials | Entered Mines 1110 | -9/Mines | Received a Mining Laser from a helpful Derelict 1131 | -9/Mines | Found a damaged Exp. Sensor Array with a note attached 1134 | -9/Mines | Found Prototype Device 1135 | -9/Mines | Identified Exp. Sensor Array 1182 | -9/Mines | Found a hidden stash of uninstalled traps 1308 | -9/Mines | Learned 2 Materials zone layouts 1381 | -9/Mines | Deemed a non-threat by the Exiles lab entrance 1381 | -9/Mines | Discovered new exit (range 5) 1384 | -9/Mines | Identified exit to Exiles 1391 | -9/Mines | Entered Exiles 1391 | -9/Exiles | Found Exiles lab destroyed 1449 | -9/Exiles | Discovered new exit (range 14) 1463 | -9/Exiles | Identified exit to Mines 1667 | -9/Exiles | Learned location of Zion (-6) 1698 | -9/Exiles | Discovered exit to Mines (range 14) 1713 | -9/Exiles | Entered Mines 2170 | -8/Mines | Lost 3 parts (1n2w) 2309 | -8/Mines | Discovered new exit (range 3) 2314 | -8/Mines | Identified exit to Materials 2315 | -8/Mines | Entered Materials 2315 | -8/Materials | Evolved 2 slots: Utility x2 2315 | -8/Materials | Discovered new exit (range 8) 2316 | -8/Materials | Identified exit to Storage 2935 | -8/Materials | Discovered exit to Storage (range 8) 3236 | -8/Materials | Discovered new exit (range 13) 3273 | -8/Materials | Identified exit to Factory 3276 | -8/Materials | Lost 4 parts (2n2u) 3515 | -8/Materials | First assault squad dispatched 3538 | -8/Materials | Identified exit to Garrison 3538 | -8/Materials | Entered Garrison 3548 | -8/Garrison | Triggered checkpoint 3822 | -8/Garrison | Triggered checkpoint 3864 | -8/Garrison | Triggered checkpoint 3949 | -8/Garrison | Lost 3 parts (2n1u) 4685 | -8/Garrison | Build established: Gladiator 5228 | -8/Garrison | Triggered checkpoint 5369 | -8/Garrison | System corruption reached 10% 5528 | -8/Garrison | Triggered checkpoint 5535 | -8/Garrison | Core integrity fell below 50% 5577 | -8/Garrison | Lost 5 parts (1p3u1w) 5636 | -8/Garrison | Triggered checkpoint 5725 | -8/Garrison | Spotted B-75 Beast 5725 | -8/Garrison | Spotted B-75 Beast 5751 | -8/Garrison | Core integrity fell below 20% 5760 | -8/Garrison | Destroyed by B-75 Beast with Heavy Plasma Cannon Last Messages --------------- 05618_ System corrupted: Heat flow error (+240). 05622_ Acquired Lgt. Nuclear Core. 05627_ Acquired Aluminum Leg. 05635_ Acquired 20 matter. 05638_ ALERT: Garrison interior compromised. 05643_ The unstable cave ceiling collapses. 05659_ I9BNXRD